[Event "Charlotte Spring IM-C 2024"]
[Site "Charlotte"]
[Date "2024.03.28"]
[Round "1.1"]
[White "Kunka, Harshid"]
[Black "Eckert, Doug"]
[Result "1-0"]
[ECO "C78"]
[WhiteElo "2294"]
[BlackElo "2146"]
[Annotator "RC"]
[PlyCount "115"]
[EventDate "2024.03.27"]
[EventType "tourn"]
[EventCountry "USA"]
[SourceTitle "playchess.com"]
[Source "ChessBase"]
[SourceQuality "1"]
[TimeControl "5400+30"]

1. e4 {[%emt 0:00:04]} e5 {[%emt 0:00:06]} 2. Nf3 {[%emt 0:00:10]} Nc6 {[%emt 0:00:04]} 3. Bb5 {[%emt 0:00:10]} a6 {[%emt 0:00:16]} 4. Ba4 {[%emt 0:00:17]} Nf6 {[%emt 0:00:18]} 5. O-O {[%emt 0:00:26]} Bc5 {[%emt 0:00:12]} 6. c3 {[%emt 0:00:21]} b5 {[%emt 0:00:05]} 7. Bc2 {[%emt 0:00:05]} d5 {[%emt 0:00:28]} 8. exd5 {[%emt 0:05:49]} Qxd5 {[%emt 0:00:38]} 9. d4 {[%emt 0:01:56]} exd4 {[%emt 0:01:11]} 10. Re1+ {[%emt 0:00:40]} Be6 {[%emt 0:01:38]} 11. Bb3 {[%emt 0:01:31]} Qd6 {[%emt 0:00:41]} 12. Ng5 {[%emt 0:00:50]} O-O-O {[%emt 0:01:29]} 13. Bxe6+ {[%emt 0:03:57]} fxe6 {[%emt 0:00:07]} 14. Nf7 {[%emt 0:00:06]} Qe7 {[%emt 0:02:39]} 15. Nxd8 {[%emt 1:21:38]} Rxd8 {[%emt 0:00:30]} 16. Qf3 {[%emt 0:00:00]} Nd5 {[%emt 0:14:08]} 17. Qg4 {[%emt 0:00:00]} Rf8 {[%emt 0:07:16]} 18. Bg5 {[%emt 0:00:00]} Qd7 {[%emt 0:05:42]} 19. c4 {[%emt 0:00:00]} bxc4 {[%emt 0:18:28]} 20. Nd2 {[%emt 0:00:00]} d3 {[%emt 0:07:19]} 21. Qxc4 {[%emt 0:00:00]} Bxf2+ {[%emt 0:00:22]} 22. Kh1 {[%emt 0:00:00]} Bxe1 {[%emt 0:01:00]} 23. Rxe1 {[%emt 0:00:00]} Nb8 {[%emt 0:15:51]} 24. Qxd3 {[%emt 0:00:00]} h6 {[%emt 0:00:10]} 25. Be3 {[%emt 0:00:00]} Qb5 {[%emt 0:05:39]} 26. Qe4 {[%emt 0:00:00]} Qc6 {[%emt 0:06:59]} 27. Nf3 {[%emt 0:00:00]} Nxe3 {[%emt 0:00:45]} 28. Qxe3 {[%emt 0:00:00]} Qb6 {[%emt 0:02:09]} 29. Qe5 {[%emt 0:00:00]} Rf6 {[%emt 0:04:15]} 30. Rc1 {[%emt 0:00:00]} Nd7 {[%emt 0:00:24]} 31. Qe4 {[%emt 0:00:00]} Qb7 {[%emt 0:01:07]} 32. Qd4 {[%emt 0:00:00]} Qb6 {[%emt 0:02:21]} 33. Qa4 {[%emt 0:00:00]} Nb8 {[%emt 0:01:21]} 34. Qe8+ {[%emt 0:00:00]} Kb7 {[%emt 0:00:07]} 35. Rc3 {[%emt 0:00:00]} Rf5 {[%emt 0:00:41]} 36. Qg6 {[%emt 0:00:00]} Rb5 {[%emt 0:00:17]} 37. Qxg7 {[%emt 0:00:00]} Nc6 {[%emt 0:00:56]} 38. b3 {[%emt 0:00:00]} Qf2 {[%emt 0:00:42]} 39. Qd7 {[%emt 0:00:00]} Rc5 {[%emt 0:00:46]} 40. Rxc5 {[%emt 0:00:00]} Qxc5 {[%emt 0:00:03]} 41. Qxe6 {[%emt 0:00:00]} Qc1+ {[%emt 0:00:19]} 42. Qe1 {[%emt 0:00:00]} Qb2 {[%emt 0:00:27]} 43. Qd2 {[%emt 0:00:00]} Qa1+ {[%emt 0:00:23]} 44. Ng1 {[%emt 0:00:00]} h5 {[%emt 0:00:42]} 45. h3 {[%emt 0:00:00]} h4 {[%emt 0:01:00]} 46. Qf2 {[%emt 0:00:00]} Qh8 {[%emt 0:00:45]} 47. Nf3 {[%emt 0:00:00]} Qa1+ {[%emt 0:00:11]} 48. Kh2 {[%emt 0:00:00]} Nb4 {[%emt 0:00:17]} 49. Qxh4 {[%emt 0:00:00]} Nxa2 {[%emt 0:00:11]} 50. Qe4+ {[%emt 0:00:00]} Kb6 {[%emt 0:00:30]} 51. h4 {[%emt 0:00:00]} Qc1 {[%emt 0:00:18]} 52. h5 {[%emt 0:00:00]} a5 {[%emt 0:00:53]} 53. Qe6+ {[%emt 0:00:00]} c6 {[%emt 0:00:25]} 54. Qf6 {[%emt 0:00:00]} Nb4 {[%emt 0:01:13]} 55. h6 {[%emt 0:00:00]} Qc2 {[%emt 0:00:35]} 56. Qd4+ {[%emt 0:00:00]} Kb7 {[%emt 0:01:11]} 57. Qg7+ {[%emt 0:00:00]} Kb6 {[%emt 0:00:00]} 58. h7 {[%emt 0:00:00]} 1-0

[Event "Charlotte Spring IM-C 2024"]
[Site "Charlotte"]
[Date "2024.03.28"]
[Round "1.2"]
[White "Nguyen, James Le"]
[Black "Horobetz, Graham"]
[Result "0-1"]
[ECO "B51"]
[WhiteElo "2114"]
[BlackElo "2252"]
[Annotator "RC"]
[PlyCount "161"]
[EventDate "2024.03.27"]
[EventType "tourn"]
[EventCountry "USA"]
[SourceTitle "playchess.com"]
[Source "ChessBase"]
[SourceQuality "1"]
[TimeControl "5400+30"]

1. e4 {[%emt 0:01:10]} c5 {[%emt 0:00:06]} 2. Nf3 {[%emt 0:00:12]} d6 {[%emt 0:00:07]} 3. Bb5+ {[%emt 0:00:06]} Nd7 {[%emt 0:00:07]} 4. a4 {[%emt 0:00:06]} Ngf6 {[%emt 0:00:30]} 5. Nc3 {[%emt 0:00:08]} g6 {[%emt 0:00:20]} 6. O-O {[%emt 0:00:13]} a6 {[%emt 0:01:25]} 7. Be2 {[%emt 0:00:10]} Bg7 {[%emt 0:01:13]} 8. a5 {[%emt 0:00:23]} b5 {[%emt 0:02:54]} 9. axb6 {[%emt 0:00:19]} Bb7 {[%emt 0:01:14]} 10. d3 {[%emt 0:02:32]} O-O {[%emt 0:01:58]} 11. Qd2 {[%emt 0:04:04]} Nxb6 {[%emt 0:12:52]} 12. Qg5 {[%emt 0:02:48]} e5 {[%emt 0:12:02]} 13. Qh4 {[%emt 0:08:44]} Ne8 {[%emt 0:00:52]} 14. Bg5 {[%emt 0:03:13]} f6 {[%emt 0:00:50]} 15. Be3 {[%emt 0:01:33]} Nc7 {[%emt 0:03:02]} 16. Nd2 {[%emt 0:09:33]} Ne6 {[%emt 0:02:15]} 17. Nc4 {[%emt 0:05:55]} Nd4 {[%emt 0:57:13]} 18. Bd1 {[%emt 0:08:31]} Qc7 {[%emt 0:00:00]} 19. Nxb6 {[%emt 0:03:43]} Qxb6 {[%emt 0:00:00]} 20. Na4 {[%emt 0:00:17]} Qc6 {[%emt 0:00:00]} 21. f3 {[%emt 0:05:02]} Ne6 {[%emt 0:02:00]} 22. c3 {[%emt 0:04:07]} Nc7 {[%emt 0:00:00]} 23. b4 {[%emt 0:04:41]} cxb4 {[%emt 0:00:00]} 24. Bb3+ {[%emt 0:01:02]} Kh8 {[%emt 0:00:00]} 25. cxb4 {[%emt 0:04:18]} Qe8 {[%emt 0:00:00]} 26. Nb6 {[%emt 0:03:43]} Rb8 {[%emt 0:00:00]} 27. Rfc1 {[%emt 0:03:21]} Nb5 {[%emt 0:00:00]} 28. Bd5 {[%emt 0:02:29]} Qe7 {[%emt 0:00:00]} 29. Rc4 {[%emt 0:02:45]} Nc7 {[%emt 0:00:00]} 30. Rac1 {[%emt 0:02:15]} Nxd5 {[%emt 0:04:30]} 31. Nxd5 {[%emt 0:06:36]} Bxd5 {[%emt 0:00:00]} 32. Rc7 {[%emt 0:02:54]} Qe8 {[%emt 0:00:00]} 33. exd5 {[%emt 0:00:43]} g5 {[%emt 0:00:00]} 34. Qc4 {[%emt 0:02:26]} Qg6 {[%emt 0:00:00]} 35. Qxa6 {[%emt 0:01:26]} g4 {[%emt 0:00:00]} 36. fxg4 {[%emt 0:03:34]} Rxb4 {[%emt 0:00:34]} 37. h3 {[%emt 0:00:20]} Rbb8 {[%emt 0:02:10]} 38. Rc8 {[%emt 0:01:19]} Rbxc8 {[%emt 0:00:30]} 39. Rxc8 {[%emt 0:00:01]} Qf7 {[%emt 0:00:13]} 40. Qa8 {[%emt 0:01:38]} Qg8 {[%emt 0:00:25]} 41. Rxf8 {[%emt 0:00:08]} Bxf8 {[%emt 0:00:47]} 42. Qd8 {[%emt 0:01:23]} Qg7 {[%emt 0:00:31]} 43. Bb6 {[%emt 0:00:25]} Qe7 {[%emt 0:00:38]} 44. Kf2 {[%emt 0:00:33]} Qf7 {[%emt 0:00:33]} 45. Ke2 {[%emt 0:01:15]} Kg7 {[%emt 0:00:14]} 46. Qa8 {[%emt 0:00:22]} Kg6 {[%emt 0:00:44]} 47. Be3 {[%emt 0:00:43]} Bh6 {[%emt 0:00:26]} 48. Bxh6 {[%emt 0:00:41]} Kxh6 {[%emt 0:00:06]} 49. Qc6 {[%emt 0:00:20]} Qe7 {[%emt 0:00:20]} 50. Kf3 {[%emt 0:00:19]} Qd8 {[%emt 0:00:17]} 51. g3 {[%emt 0:00:28]} Qb8 {[%emt 0:00:16]} 52. Qc1+ {[%emt 0:00:35]} Kg6 {[%emt 0:02:16]} 53. h4 {[%emt 0:00:22]} Qb3 {[%emt 0:00:00]} 54. h5+ {[%emt 0:00:10]} Kg7 {[%emt 0:01:00]} 55. Qc7+ {[%emt 0:00:12]} Kg8 {[%emt 0:00:00]} 56. Qd8+ {[%emt 0:00:26]} Kg7 {[%emt 0:01:00]} 57. Qe7+ {[%emt 0:01:19]} Kg8 {[%emt 0:00:00]} 58. Ke4 {[%emt 0:00:37]} f5+ {[%emt 0:00:00]} 59. gxf5 {[%emt 0:00:41]} Qa4+ {[%emt 0:00:11]} 60. Ke3 {[%emt 0:00:24]} Qd4+ {[%emt 0:00:07]} 61. Ke2 {[%emt 0:00:08]} Qg4+ {[%emt 0:00:55]} 62. Kf2 {[%emt 0:00:30]} Qd4+ {[%emt 0:01:03]} 63. Kg2 {[%emt 0:00:16]} Qxd5+ {[%emt 0:00:11]} 64. Kh2 {[%emt 0:00:28]} Qxd3 {[%emt 0:00:37]} 65. Qe8+ {[%emt 0:00:25]} Kg7 {[%emt 0:01:26]} 66. h6+ {[%emt 0:01:18]} Kf6 {[%emt 0:00:00]} 67. Qf8+ {[%emt 0:00:18]} Kg5 {[%emt 0:00:00]} 68. Qg7+ {[%emt 0:00:41]} Kh5 {[%emt 0:00:00]} 69. Qf7+ {[%emt 0:00:38]} Kg4 {[%emt 0:02:00]} 70. Qg7+ {[%emt 0:00:24]} Kf3 {[%emt 0:00:00]} 71. Qb7+ d5 {[%emt 0:01:00]} 72. Qb2 {[%emt 0:01:41]} Qxf5 {[%emt 0:00:00]} 73. Qg2+ {[%emt 0:00:30]} Kg4 {[%emt 0:01:00]} 74. Qe2+ {[%emt 0:00:00]} Qf3 {[%emt 0:00:30]} 75. Qxe5 {[%emt 0:00:00]} Qf2+ {[%emt 0:00:00]} 76. Kh1 Qf1+ {[%emt 0:01:00]} 77. Kh2 {[%emt 0:02:00]} Qh3+ {[%emt 0:00:00]} 78. Kg1 {[%emt 0:00:00]} Qxg3+ {[%emt 0:00:00]} 79. Qxg3+ {[%emt 0:00:00]} Kxg3 {[%emt 0:01:30]} 80. Kf1 {[%emt 0:00:00]} Kf3 {[%emt 0:00:30]} 81. Ke1 {[%emt 0:00:00]} 0-1

[Event "Charlotte Spring IM-C 2024"]
[Site "Charlotte"]
[Date "2024.03.28"]
[Round "1.3"]
[White "Wu, Sibo"]
[Black "Mendez Tovar, Yessica Yissel"]
[Result "1/2-1/2"]
[ECO "D02"]
[WhiteElo "2142"]
[BlackElo "1993"]
[Annotator "RC"]
[PlyCount "60"]
[EventDate "2024.03.27"]
[EventType "tourn"]
[EventCountry "USA"]
[SourceTitle "playchess.com"]
[Source "ChessBase"]
[SourceQuality "1"]
[TimeControl "5400+30"]

1. d4 {[%emt 0:00:08]} d5 {[%emt 0:00:03]} 2. Bf4 {[%emt 0:00:25]} c5 {[%emt 0:00:22]} 3. e3 {[%emt 0:00:14]} Nc6 {[%emt 0:00:55]} 4. Nf3 {[%emt 0:01:07]} Nf6 {[%emt 0:01:52]} 5. Nbd2 {[%emt 0:00:47]} cxd4 {[%emt 0:00:44]} 6. exd4 {[%emt 0:00:10]} Bf5 {[%emt 0:01:18]} 7. c3 {[%emt 0:02:33]} e6 {[%emt 0:00:23]} 8. Qb3 {[%emt 0:01:44]} Bd6 {[%emt 0:01:30]} 9. Bxd6 {[%emt 0:24:13]} Qxd6 {[%emt 0:00:11]} 10. Bb5 {[%emt 0:00:15]} O-O {[%emt 0:08:06]} 11. O-O {[%emt 0:01:00]} h6 {[%emt 0:19:23]} 12. Rfe1 {[%emt 0:07:20]} Ne4 {[%emt 0:04:26]} 13. Nxe4 {[%emt 0:05:44]} Bxe4 {[%emt 0:03:23]} 14. Nd2 {[%emt 0:00:52]} Bh7 {[%emt 0:05:29]} 15. Bxc6 {[%emt 0:02:17]} bxc6 {[%emt 0:00:23]} 16. Qa4 {[%emt 0:08:33]} c5 {[%emt 0:11:13]} 17. dxc5 {[%emt 0:07:44]} Qxc5 {[%emt 0:00:10]} 18. Nb3 {[%emt 0:02:37]} Qb6 {[%emt 0:11:45]} 19. Qd4 {[%emt 0:12:52]} Qb5 {[%emt 0:19:54]} 20. Re3 {[%emt 0:04:25]} Rfc8 {[%emt 0:01:55]} 21. Rg3 {[%emt 0:02:19]} Bg6 {[%emt 0:00:17]} 22. Re1 {[%emt 0:05:14]} Rc4 {[%emt 0:03:10]} 23. Qd2 {[%emt 0:01:37]} Rb8 {[%emt 0:00:58]} 24. Re2 {[%emt 0:01:49]} Rbc8 {[%emt 0:01:04]} 25. h3 {[%emt 0:03:27]} Qa6 {[%emt 0:01:19]} 26. a3 {[%emt 0:01:55]} Kh7 {[%emt 0:02:34]} 27. Re1 {[%emt 0:01:06]} Qd6 {[%emt 0:00:35]} 28. Nd4 {[%emt 0:01:29]} e5 {[%emt 0:00:26]} 29. Nf3 {[%emt 0:00:25]} Be4 {[%emt 0:00:27]} 30. Nh2 {[%emt 0:00:34]} f5 {[%emt 0:01:15]} 1/2-1/2

[Event "Charlotte Spring IM-C 2024"]
[Site "Charlotte"]
[Date "2024.03.28"]
[Round "1.4"]
[White "Melillo, Lucius"]
[Black "Fierro Baquero, Martha L."]
[Result "1-0"]
[ECO "B06"]
[WhiteElo "2274"]
[BlackElo "2283"]
[Annotator "RC"]
[PlyCount "159"]
[EventDate "2024.03.27"]
[EventType "tourn"]
[EventCountry "USA"]
[SourceTitle "playchess.com"]
[Source "ChessBase"]
[SourceQuality "1"]
[TimeControl "5400+30"]

1. d4 {[%emt 0:00:02]} g6 {[%emt 0:00:04]} 2. e4 {[%emt 0:00:04]} Bg7 {[%emt 0:00:05]} 3. Nc3 {[%emt 0:00:04]} c6 {[%emt 0:02:38]} 4. Bc4 {[%emt 0:01:43]} d5 {[%emt 0:03:50]} 5. exd5 {[%emt 0:00:27]} b5 {[%emt 0:01:46]} 6. Be2 {[%emt 0:00:06]} b4 {[%emt 0:00:17]} 7. Na4 {[%emt 0:00:05]} cxd5 {[%emt 0:00:05]} 8. a3 {[%emt 0:00:05]} bxa3 {[%emt 0:04:30]} 9. Rxa3 {[%emt 0:00:36]} Nf6 {[%emt 0:00:10]} 10. Nf3 {[%emt 0:00:03]} O-O {[%emt 0:00:46]} 11. O-O {[%emt 0:00:04]} Bg4 {[%emt 0:04:14]} 12. Re1 {[%emt 0:06:43]} e6 {[%emt 0:07:09]} 13. Bf4 {[%emt 0:01:33]} Nc6 {[%emt 0:06:13]} 14. c3 {[%emt 0:02:07]} Ne4 {[%emt 0:11:07]} 15. Nd2 {[%emt 0:06:35]} Bxe2 {[%emt 0:03:14]} 16. Qxe2 {[%emt 0:00:47]} Nxd2 {[%emt 0:02:06]} 17. Qxd2 {[%emt 0:00:13]} Re8 {[%emt 0:09:04]} 18. Nc5 {[%emt 0:10:26]} e5 {[%emt 0:06:32]} 19. dxe5 {[%emt 0:00:24]} Nxe5 {[%emt 0:01:01]} 20. Bxe5 {[%emt 0:00:11]} Bxe5 {[%emt 0:02:47]} 21. Nd3 {[%emt 0:01:21]} Bd6 {[%emt 0:17:25]} 22. Ra4 {[%emt 0:01:58]} Qd7 {[%emt 0:01:18]} 23. Rd4 {[%emt 0:01:00]} Qf5 {[%emt 0:00:01]} 24. g3 {[%emt 0:07:54]} Re6 {[%emt 0:06:19]} 25. Nf4 {[%emt 0:01:58]} Bxf4 {[%emt 0:02:54]} 26. Rxf4 {[%emt 0:00:39]} Rxe1+ {[%emt 0:00:05]} 27. Qxe1 {[%emt 0:00:05]} Qe6 {[%emt 0:00:43]} 28. Qd2 {[%emt 0:00:25]} Rc8 {[%emt 0:03:10]} 29. Rd4 {[%emt 0:07:03]} Rc5 {[%emt 0:00:05]} 30. b4 {[%emt 0:01:07]} Rb5 {[%emt 0:00:10]} 31. Kg2 {[%emt 0:01:48]} Qc6 {[%emt 0:01:45]} 32. Kg1 {[%emt 0:11:50]} a5 {[%emt 0:01:39]} 33. Rh4 {[%emt 0:01:16]} axb4 {[%emt 0:01:11]} 34. cxb4 {[%emt 0:00:44]} h5 {[%emt 0:00:42]} 35. Qg5 {[%emt 0:03:34]} Qc2 {[%emt 0:01:48]} 36. Kg2 {[%emt 0:03:52]} Qc6 {[%emt 0:00:22]} 37. Kg1 {[%emt 0:02:00]} Qc2 {[%emt 0:00:56]} 38. Qe7 {[%emt 0:00:06]} Qc1+ {[%emt 0:00:13]} 39. Kg2 {[%emt 0:00:45]} Qc6 {[%emt 0:00:09]} 40. Rd4 {[%emt 0:00:47]} Qe6 {[%emt 0:00:45]} 41. Qc7 {[%emt 0:02:17]} Qb6 {[%emt 0:00:54]} 42. Qc8+ {[%emt 0:00:28]} Kg7 {[%emt 0:00:05]} 43. Qc3 {[%emt 0:01:09]} Qf6 {[%emt 0:00:34]} 44. h4 {[%emt 0:01:15]} Rb6 {[%emt 0:00:55]} 45. Qd3 {[%emt 0:01:11]} Rb7 {[%emt 0:00:35]} 46. Qd2 {[%emt 0:04:46]} Qe5 {[%emt 0:00:34]} 47. Kf1 {[%emt 0:02:02]} Ra7 {[%emt 0:00:29]} 48. b5 {[%emt 0:05:20]} Ra2 {[%emt 0:00:34]} 49. Qxa2 {[%emt 0:02:15]} Qxd4 {[%emt 0:00:04]} 50. Qb3 {[%emt 0:00:23]} Qe4 {[%emt 0:00:28]} 51. b6 {[%emt 0:03:30]} d4 {[%emt 0:00:04]} 52. f3 {[%emt 0:05:48]} Qb7 {[%emt 0:00:35]} 53. Ke2 {[%emt 0:01:04]} Kh7 {[%emt 0:01:12]} 54. Qb4 {[%emt 0:02:22]} Qa6+ {[%emt 0:00:34]} 55. Kd2 {[%emt 0:00:40]} Qa2+ {[%emt 0:00:05]} 56. Kd3 {[%emt 0:00:25]} Qf2 {[%emt 0:00:02]} 57. Qxd4 {[%emt 0:00:42]} Qxf3+ {[%emt 0:00:06]} 58. Qe3 {[%emt 0:00:31]} Qd1+ {[%emt 0:00:13]} 59. Kc3 {[%emt 0:00:10]} Qd6 {[%emt 0:00:37]} 60. Kc4 {[%emt 0:00:32]} Qc6+ {[%emt 0:00:47]} 61. Qc5 {[%emt 0:00:09]} Qa4+ {[%emt 0:00:31]} 62. Kc3 {[%emt 0:00:44]} Qa1+ {[%emt 0:00:10]} 63. Kb4 {[%emt 0:00:21]} Qe1+ {[%emt 0:01:06]} 64. Kb5 {[%emt 0:00:20]} Qe2+ {[%emt 0:00:33]} 65. Kc6 {[%emt 0:00:15]} Qf3+ {[%emt 0:00:21]} 66. Qd5 {[%emt 0:00:37]} Qf6+ {[%emt 0:00:18]} 67. Kc7 {[%emt 0:01:43]} Qe7+ {[%emt 0:00:26]} 68. Qd7 {[%emt 0:00:16]} Qe5+ {[%emt 0:00:13]} 69. Kb7 {[%emt 0:00:11]} Qe4+ {[%emt 0:00:12]} 70. Ka7 {[%emt 0:00:18]} Qc4 {[%emt 0:01:20]} 71. b7 {[%emt 0:00:35]} Qc5+ {[%emt 0:00:36]} 72. Ka6 {[%emt 0:00:31]} Qa3+ {[%emt 0:00:39]} 73. Kb6 {[%emt 0:00:09]} Qb4+ {[%emt 0:00:54]} 74. Kc7 {[%emt 0:00:14]} Qc5+ {[%emt 0:00:25]} 75. Qc6 {[%emt 0:00:14]} Qe7+ {[%emt 0:00:52]} 76. Kc8 {[%emt 0:00:24]} Qf8+ {[%emt 0:00:04]} 77. Kd7 {[%emt 0:00:14]} Qb4 {[%emt 0:00:06]} 78. Qc7 {[%emt 0:00:40]} Qg4+ {[%emt 0:01:24]} 79. Ke8 {[%emt 0:00:38]} Qe6+ {[%emt 0:00:30]} 80. Kf8 {[%emt 0:00:18]} 1-0

[Event "Charlotte Spring IM-C 2024"]
[Site "Charlotte"]
[Date "2024.03.28"]
[Round "1.5"]
[White "Komarov, Dimitri"]
[Black "Posthuma, Joshua"]
[Result "1/2-1/2"]
[ECO "E90"]
[WhiteElo "2448"]
[BlackElo "2449"]
[Annotator "TA"]
[PlyCount "62"]
[EventDate "2024.03.27"]
[EventType "tourn"]
[EventCountry "USA"]
[SourceTitle "playchess.com"]
[Source "ChessBase"]
[SourceQuality "1"]
[TimeControl "5400+30"]

{[%evp 12,62,50,40,62,62,63,62,66,41,45,42,38,29,29,29,29,29,29,0,0,0,0,0,0,0,0,0,0,-18,-19,-16,-8,-18,0,0,0,0,0,0,0,0,0,0,0,0,0,0,0,0,0,0,0]} 1. d4 {[%emt 0:00:01]} Nf6 {[%emt 0:00:17]} 2. Nf3 {[%emt 0:00:04]} g6 {[%emt 0:00:15]} 3. c4 {[%emt 0:00:07]} Bg7 {[%emt 0:00:13]} 4. Nc3 {[%emt 0:00:15]} d6 {[%emt 0:00:16]} 5. e4 {[%emt 0:01:39]} Bg4 {[%emt 0:00:13]} 6. Be2 {[%emt 0:01:38]} Bxf3 {[%emt 0:00:17]} 7. Bxf3 {[%emt 0:01:06] [#] e5 would now be deadly.} e5 {[%emt 0:00:08]} 8. d5 {[%emt 0:06:07]} h5 {[%emt 0:01:33]} 9. O-O {[%emt 0:05:57]} Nbd7 {[%emt 0:01:03] White is slightly better.} 10. Rb1 {[%emt 0:01:58]} Bh6 {[%emt 0:00:19]} 11. Bxh6 {[%emt 0:06:05]} Rxh6 {[%emt 0:00:07]} 12. Qd2 {[%emt 0:00:12]} Rh8 {[%emt 0:00:17]} 13. b4 {[%emt 0:00:39]} Kf8 {[%emt 0:02:19]} 14. Rfc1 {[%emt 0:03:28]} Kg7 {[%emt 0:01:54]} 15. Na4 {[%emt 0:06:12]} a5 $1 {[%emt 0:09:46] The position is equal.} 16. bxa5 {[%emt 0:05:28]} b6 {[%emt 0:03:53]} 17. Rb5 {[%emt 0:01:17]} (17. c5 Rxa5 18. Nc3 Nxc5 $17 (18... bxc5 19. a4 $17)) 17... Ra6 {[%emt 0:03:01]} 18. Nc3 {[%emt 0:16:21]} bxa5 {[%emt 0:42:52]} 19. Na4 {[%emt 0:00:23][%cal Oc4c5,Bc3a4,Ba4b2,Bb2d3,Bd3b4][%mdl 32]} Nb6 {[%emt 0:08:30][%cal Bd7b6,Bb6a4,Ba4c5][%mdl 32]} 20. Nb2 {[%emt 0:08:15][%cal Oc4c5]} (20. Rxa5 Nxe4 21. Bxe4 Rxa5 22. Qxa5 Qg5 $17) 20... Nfd7 {[%emt 0:03:01]} 21. Nd3 {[%emt 0:01:06][%cal Of3d1]} ({Don't play} 21. Rxa5 Rxa5 22. Qxa5 Qg5 $15 (22... Qa8 23. Qxa8 Rxa8 24. a4 $15)) 21... Na4 {[%emt 0:01:56]} 22. Rxa5 {[%emt 0:01:19]} Qa8 {[%emt 0:02:21]} 23. Rxa6 {[%emt 0:04:31]} Qxa6 {[%emt 0:00:05]} 24. Nb4 {[%emt 0:04:53]} Qa5 {[%emt 0:00:22]} 25. a3 {[%emt 0:00:28]} Nac5 {[%emt 0:00:44]} 26. Rc3 {[%emt 0:01:35] Wards off Nb3} Nf6 {[%emt 0:01:43] Excellent horsemanship.} 27. Qe3 {[%emt 0:04:01]} Ra8 {[%emt 0:00:40][%cal Oc5e4]} 28. h3 {[%emt 0:00:28]} h4 {[%emt 0:02:07]} 29. Kh2 {[%emt 0:01:52]} Qb6 {[%emt 0:00:44]} 30. Qe2 {[%emt 0:03:51]} Ra4 {[%emt 0:02:37]} 31. Re3 {[%emt 0:00:17]} Ra8 {[%emt 0:03:46] Weighted Error Value: White=0.03 (flawless) /Black=0.02 (flawless) .  Inaccurate:     	White=1     	---        OK:         	White=11    	Black=14     Best:        	White=1     	Black=1      Strong:       	---       	Black=1} 1/2-1/2

[Event "Charlotte Spring IM-C 2024"]
[Site "Charlotte"]
[Date "2024.03.28"]
[Round "2.1"]
[White "Eckert, Doug"]
[Black "Posthuma, Joshua"]
[Result "1/2-1/2"]
[ECO "A14"]
[WhiteElo "2146"]
[BlackElo "2449"]
[Annotator "TA"]
[PlyCount "100"]
[EventDate "2024.03.27"]
[EventType "tourn"]
[EventCountry "USA"]
[SourceTitle "playchess.com"]
[Source "ChessBase"]
[SourceQuality "1"]
[TimeControl "5400+30"]

{[%evp 12,100,10,5,1,13,14,19,12,0,14,-6,-7,-11,0,-8,67,61,57,58,77,66,73,83,65,68,97,43,38,55,62,48,49,32,25,15,27,0,21,-20,-16,-33,46,0,0,0,0,-98,0,0,0,0,173,3,145,127,145,145,129,142,125,123,140,78,152,138,102,0,0,0,0,0,0,0,0,0,0,0,0,0,0,0,0,0,0,0,0,0,0,0,0]} 1. c4 {[%emt 0:01:40]} Nf6 {[%emt 0:05:20]} 2. Nf3 {[%emt 0:00:09]} e6 {[%emt 0:00:29]} 3. g3 {[%emt 0:00:07]} d5 {[%emt 0:00:13]} 4. Bg2 {[%emt 0:00:05]} Be7 {[%emt 0:00:20]} 5. O-O {[%emt 0:00:09]} O-O {[%emt 0:00:06]} 6. b3 {[%emt 0:00:16]} d4 {[%emt 0:00:23]} 7. e3 {[%emt 0:00:33]} c5 {[%emt 0:00:05]} 8. Ne5 {[%emt 0:01:24] Prevents Nc6.} Qc7 {[%emt 0:01:21]} 9. f4 {[%emt 0:01:13]} Nfd7 {[%emt 0:03:52]} 10. exd4 {[%emt 0:04:34]} cxd4 {[%emt 0:01:05]} 11. Nxd7 {[%emt 0:00:06]} Bxd7 {[%emt 0:04:48]} 12. d3 {[%emt 0:03:04]} Nc6 {[%emt 0:04:21][%cal Bb8c6,Bc6d8,Bd8e6,Be6c5][%mdl 32]} 13. Na3 {[%emt 0:13:30]} f5 {[%emt 0:12:33]} (13... Nb4 $11) 14. Nc2 {[%emt 0:01:05]} Rae8 {[%emt 0:15:56]} 15. Rb1 {[%emt 0:07:45][%cal Ba1b1,Bb1b4,Bb4b2][%mdl 32]} e5 {[%emt 0:08:33]} 16. b4 {[%emt 0:01:57][%cal Bb3b4,Bb4b5][%mdl 32]} b6 {[%emt 0:08:18]} 17. b5 {[%emt 0:05:50]} Nd8 {[%emt 0:01:13][%cal Oe5e4]} 18. fxe5 {[%emt 0:01:16]} Qxe5 {[%emt 0:01:26]} 19. Nb4 {[%emt 0:03:25]} ({Better is} 19. Bf4 $16 Qf6 20. Nb4) 19... Bxb4 $14 {[%emt 0:06:00]} 20. Rxb4 {[%emt 0:00:07]} Ne6 {[%emt 0:01:10]} 21. Rb2 {[%emt 0:08:11]} Nc5 {[%emt 0:00:36]} 22. Rbf2 {[%emt 0:02:09]} h6 {[%emt 0:12:28]} 23. Bf3 {[%emt 0:05:18]} Kh7 {[%emt 0:00:33]} 24. Re2 {[%emt 0:01:26]} Qf6 {[%emt 0:00:26]} 25. Rfe1 {[%emt 0:03:35]} Rxe2 {[%emt 0:01:25]} 26. Rxe2 {[%emt 0:00:15]} Re8 {[%emt 0:00:08]} (26... f4 $1 $15 27. g4 (27. Bxf4 $2 g5 $19) 27... Bxg4 28. Bxg4 f3) 27. Ba3 {[%emt 0:02:27]} (27. Rxe8 $14 Bxe8 28. Qe2) 27... Re3 $11 {[%emt 0:03:40]} 28. Rxe3 {[%emt 0:07:17]} dxe3 {[%emt 0:00:02]} 29. d4 {[%emt 0:06:28]} (29. Bxc5 $11 bxc5 30. Qe2) 29... Ne4 {[%emt 0:00:17]} (29... Ne6 $1 $17 {[%cal Re6g5] ...Ng5! would now be deadly.} 30. Bc1 Nxd4 (30... Qxd4 31. Qe2 $15) 31. Bxe3 Nxf3+ 32. Qxf3 Qa1+ 33. Kf2 Be6 (33... Qxa2+ 34. Qe2 $17)) 30. Qd3 $36 {[%emt 0:01:58][%csl LRe3,LRe4][%mdl 2048] White has good play.} Nd2 {[%emt 0:01:22]} 31. Kg2 {[%emt 0:03:26]} Qg5 $2 {[%emt 0:02:43]} (31... Kh8 $11 32. Bb4 Nxf3 33. Kxf3 f4 34. gxf4 Qe6) 32. Bd5 $2 {[%emt 0:02:25]} (32. Be2 $1 $18) 32... Qh5 {[%emt 0:02:42]} (32... Ne4 $1 $11 {remains equal.}) 33. Qxe3 $16 {[%emt 0:02:49]} Qxh2+ {[%emt 0:00:12] Black is weak on the dark squares} 34. Kxh2 {[%emt 0:00:24]} Nf1+ {[%emt 0:00:03]} 35. Kg1 {[%emt 0:01:13]} Nxe3 {[%emt 0:00:03][%mdl 4096] Endgame. KBB-KBN} 36. Bf7 {[%emt 0:00:39]} g5 {[%emt 0:00:51] [#]} 37. Kf2 {[%emt 0:01:52]} (37. Bf8 $142 $1) 37... Ng4+ {[%emt 0:00:40]} ({Black should try} 37... Kg7 38. Kxe3 Kxf7) 38. Ke2 {[%emt 0:00:08]} Nf6 {[%emt 0:00:24] [#]} 39. Be7 {[%emt 0:01:59]} (39. Bf8 $1 $16) 39... Kg7 $11 {[%emt 0:01:41] The position is equal.} 40. Bxf6+ {[%emt 0:00:04]} Kxf6 {[%emt 0:00:09] KB-KB} 41. Bd5 {[%emt 0:00:04]} Ke7 {[%emt 0:01:25]} 42. a4 {[%emt 0:00:15]} Kd6 {[%emt 0:00:10]} 43. Ke3 {[%emt 0:00:22]} Bc8 {[%emt 0:01:04]} 44. Kf3 {[%emt 0:01:10]} a6 {[%emt 0:00:35]} 45. Ke3 {[%emt 0:00:08]} axb5 {[%emt 0:00:20]} 46. axb5 {[%emt 0:00:03]} Bd7 {[%emt 0:00:16][%cal Od7b5]} 47. Bf7 {[%emt 0:00:27]} Ke7 {[%emt 0:00:47]} 48. Bd5 {[%emt 0:00:05]} Kd6 {[%emt 0:01:56][%cal Od7b5]} 49. Bf7 {[%emt 0:00:04]} Bc8 {[%emt 0:00:00]} 50. Bd5 {[%emt 0:00:12]} Bd7 {[%emt 0:00:19] Weighted Error Value: White=0.24 (precise) /Black=0.27 (precise) .  Loses game:     	---       	Black=1      Missed win:     	White=1     	---        Mistake:       	White=5     	Black=5      Inaccurate:     	White=1     	Black=1      OK:         	White=13    	Black=16     Best:        	White=4     	Black=5} 1/2-1/2